[Event "Live Chess"]
[Site "Chess.com"]
[Date "2024.06.02"]
[Round "-"]
[White "RichardABates"]
[Black "upoe610"]
[Result "1/2-1/2"]
[WhiteElo "2355"]
[BlackElo "2189"]
[TimeControl "300"]
[EndTime "0:05:50 PDT"]
[Termination "Game drawn - insufficient material"]

1. d4 {[%clk 0:04:57.1]} 1... Nf6 {[%clk 0:04:58.3]} 2. Nf3 {[%clk 0:04:55.4]}
2... c5 {[%clk 0:04:57.2]} 3. d5 {[%clk 0:04:54]} 3... b5 {[%clk 0:04:54.9]} 4.
Bg5 {[%clk 0:04:50.8]} 4... d6 {[%clk 0:04:49.6]} 5. Bxf6 {[%clk 0:04:49.2]}
5... exf6 {[%clk 0:04:46.5]} 6. e4 {[%clk 0:04:47.7]} 6... a6 {[%clk 0:04:44.7]}
7. a4 {[%clk 0:04:46.3]} 7... b4 {[%clk 0:04:43.5]} 8. Nbd2 {[%clk 0:04:43]}
8... g6 {[%clk 0:04:42]} 9. a5 {[%clk 0:04:38.2]} 9... Bg7 {[%clk 0:04:33.5]}
10. Nc4 {[%clk 0:04:33.8]} 10... O-O {[%clk 0:04:28.7]} 11. h3 {[%clk
0:04:30.4]} 11... f5 {[%clk 0:04:27.8]} 12. exf5 {[%clk 0:04:21.5]} 12... Bxf5
{[%clk 0:04:24.7]} 13. Be2 {[%clk 0:04:19.2]} 13... Ra7 {[%clk 0:04:20]} 14. O-O
{[%clk 0:04:16]} 14... Re7 {[%clk 0:04:18.7]} 15. Bd3 {[%clk 0:04:11.8]} 15...
Bxd3 {[%clk 0:04:16.8]} 16. Qxd3 {[%clk 0:04:10.3]} 16... Rfe8 {[%clk 0:04:16]}
17. Rae1 {[%clk 0:04:04.9]} 17... Rxe1 {[%clk 0:04:13.4]} 18. Rxe1 {[%clk
0:04:03.5]} 18... Rxe1+ {[%clk 0:04:11.9]} 19. Nxe1 {[%clk 0:04:01.8]} 19... Qe7
{[%clk 0:04:10]} 20. Nf3 {[%clk 0:03:59.8]} 20... Nd7 {[%clk 0:04:09.2]} 21. Kf1
{[%clk 0:03:37.8]} 21... f5 {[%clk 0:04:01.4]} 22. b3 {[%clk 0:03:27.1]} 22...
Nf6 {[%clk 0:03:50.8]} 23. Nfd2 {[%clk 0:03:23.6]} 23... Nh5 {[%clk 0:03:29.9]}
24. Qe3 {[%clk 0:03:12.8]} 24... Qf7 {[%clk 0:03:18.8]} 25. Nxd6 {[%clk
0:03:06.2]} 25... Qxd5 {[%clk 0:03:16.6]} 26. Qd3 {[%clk 0:02:49.7]} 26... Qxd3+
{[%clk 0:03:07.8]} 27. cxd3 {[%clk 0:02:48.3]} 27... Nf4 {[%clk 0:03:07.7]} 28.
Nb7 {[%clk 0:02:43.3]} 28... Nxd3 {[%clk 0:03:06.6]} 29. Ke2 {[%clk 0:02:41.7]}
29... Nf4+ {[%clk 0:03:05.7]} 30. Kf3 {[%clk 0:02:33.2]} 30... Ne6 {[%clk
0:03:04.4]} 31. Ke3 {[%clk 0:02:28.6]} 31... Bd4+ {[%clk 0:03:00.2]} 32. Kd3
{[%clk 0:02:26.2]} 32... Bxf2 {[%clk 0:02:58.7]} 33. Kc4 {[%clk 0:02:25.1]}
33... Be3 {[%clk 0:02:52.7]} 34. Nf3 {[%clk 0:02:21]} 34... Kf7 {[%clk 0:02:45]}
35. Kd5 {[%clk 0:02:16.3]} 35... Nf4+ {[%clk 0:02:39]} 36. Kd6 {[%clk
0:02:13.7]} 36... c4 {[%clk 0:02:24]} 37. Ne5+ {[%clk 0:02:09.3]} 37... Ke8
{[%clk 0:02:17.8]} 38. Nxc4 {[%clk 0:02:07.6]} 38... Nxg2 {[%clk 0:02:16.8]} 39.
Kd5 {[%clk 0:01:56]} 39... Bf4 {[%clk 0:02:09.4]} 40. Nc5 {[%clk 0:01:53.2]}
40... Ne3+ {[%clk 0:02:03.2]} 41. Nxe3 {[%clk 0:01:51.5]} 41... Bxe3 {[%clk
0:02:02.3]} 42. Nxa6 {[%clk 0:01:50.3]} 42... Kd7 {[%clk 0:01:59]} 43. Nxb4
{[%clk 0:01:47.5]} 43... h5 {[%clk 0:01:56.7]} 44. a6 {[%clk 0:01:45]} 44... Kc7
{[%clk 0:01:53.1]} 45. Nc2 {[%clk 0:01:39.4]} 45... Bf4 {[%clk 0:01:48.9]} 46.
Ke6 {[%clk 0:01:34.5]} 46... Bh2 {[%clk 0:01:38.3]} 47. Kf6 {[%clk 0:01:31.8]}
47... f4 {[%clk 0:01:37.4]} 48. Kxg6 {[%clk 0:01:29.8]} 48... h4 {[%clk
0:01:30.6]} 49. Ne1 {[%clk 0:01:26.5]} 49... Bg3 {[%clk 0:01:28.4]} 50. Nf3
{[%clk 0:01:24.9]} 50... Kb6 {[%clk 0:01:27]} 51. Kf5 {[%clk 0:01:22.4]} 51...
Kxa6 {[%clk 0:01:24.4]} 52. Kg4 {[%clk 0:01:21.3]} 52... Kb5 {[%clk 0:01:23.3]}
53. Nxh4 {[%clk 0:01:20.1]} 53... Kb4 {[%clk 0:01:21.5]} 54. Nf5 {[%clk
0:01:17.7]} 54... Be1 {[%clk 0:01:18.9]} 55. Nd4 {[%clk 0:01:09.9]} 55... Kc3
{[%clk 0:01:11.4]} 56. Ne2+ {[%clk 0:01:01]} 56... Kxb3 {[%clk 0:01:09.5]} 57.
Kxf4 {[%clk 0:00:59.6]} 57... Kc4 {[%clk 0:01:07.8]} 58. Ng3 {[%clk 0:00:57.4]}
58... Kd5 {[%clk 0:01:05.9]} 59. h4 {[%clk 0:00:56.5]} 59... Ke6 {[%clk
0:01:04.8]} 60. h5 {[%clk 0:00:55.6]} 60... Kf7 {[%clk 0:01:04.1]} 61. Nf5
{[%clk 0:00:49.9]} 61... Bd2+ {[%clk 0:01:01.3]} 62. Ke5 {[%clk 0:00:47.5]}
62... Kg8 {[%clk 0:00:59.2]} 63. Kf6 {[%clk 0:00:45.9]} 63... Kh7 {[%clk
0:00:58.4]} 64. Kf7 {[%clk 0:00:43.9]} 64... Bc1 {[%clk 0:00:56.4]} 65. h6
{[%clk 0:00:40.8]} 65... Bxh6 {[%clk 0:00:55.2]} 1/2-1/2

[Event "Live Chess"]
[Site "Chess.com"]
[Date "2024.06.02"]
[Round "-"]
[White "Bradfield133"]
[Black "KeithArkell"]
[Result "0-1"]
[WhiteElo "1871"]
[BlackElo "2417"]
[TimeControl "300"]
[EndTime "0:05:50 PDT"]
[Termination "KeithArkell won on time"]

1. c4 {[%clk 0:04:54.8]} 1... c5 {[%clk 0:04:59]} 2. g3 {[%clk 0:04:51.6]} 2...
Nc6 {[%clk 0:04:58.2]} 3. Bg2 {[%clk 0:04:50.4]} 3... g6 {[%clk 0:04:57.9]} 4.
Nc3 {[%clk 0:04:48.1]} 4... Bg7 {[%clk 0:04:57.3]} 5. a3 {[%clk 0:04:47.3]} 5...
Nf6 {[%clk 0:04:56]} 6. Rb1 {[%clk 0:04:45]} 6... a5 {[%clk 0:04:54.8]} 7. e4
{[%clk 0:04:42.1]} 7... d6 {[%clk 0:04:54]} 8. Nge2 {[%clk 0:04:39.2]} 8... O-O
{[%clk 0:04:52.4]} 9. O-O {[%clk 0:04:37.9]} 9... Bg4 {[%clk 0:04:51.2]} 10. f3
{[%clk 0:04:35.2]} 10... Bd7 {[%clk 0:04:49.1]} 11. d3 {[%clk 0:04:33.7]} 11...
e5 {[%clk 0:04:48.2]} 12. h3 {[%clk 0:04:30.2]} 12... h6 {[%clk 0:04:46.7]} 13.
f4 {[%clk 0:04:28.4]} 13... exf4 {[%clk 0:04:45.2]} 14. Nxf4 {[%clk 0:04:21.7]}
14... Nd4 {[%clk 0:04:43.2]} 15. Be3 {[%clk 0:04:15.6]} 15... Bc6 {[%clk
0:04:41]} 16. Kh2 {[%clk 0:04:08.8]} 16... Nd7 {[%clk 0:04:37.8]} 17. Ncd5
{[%clk 0:03:57]} 17... Bxd5 {[%clk 0:04:36.9]} 18. Nxd5 {[%clk 0:03:55.5]} 18...
Nb6 {[%clk 0:04:26.7]} 19. Qd2 {[%clk 0:03:47.4]} 19... Nxd5 {[%clk 0:04:24.3]}
20. cxd5 {[%clk 0:03:45.2]} 20... Kh7 {[%clk 0:04:22.4]} 21. b4 {[%clk
0:03:30.5]} 21... axb4 {[%clk 0:04:18.8]} 22. axb4 {[%clk 0:03:28.3]} 22... b6
{[%clk 0:04:07.6]} 23. bxc5 {[%clk 0:03:17.9]} 23... bxc5 {[%clk 0:04:06.7]} 24.
Rb7 {[%clk 0:03:08.9]} 24... Qe8 {[%clk 0:03:55.3]} 25. Qf2 {[%clk 0:02:59]}
25... Kg8 {[%clk 0:03:52.2]} 26. Qd2 {[%clk 0:02:29.1]} 26... g5 {[%clk
0:03:49.9]} 27. Rfb1 {[%clk 0:02:16]} 27... Be5 {[%clk 0:03:45.7]} 28. Rc7
{[%clk 0:01:53.3]} 28... Qd8 {[%clk 0:03:43.7]} 29. Rbb7 {[%clk 0:01:49.4]}
29... Qf6 {[%clk 0:03:42.6]} 30. Qf2 {[%clk 0:01:44.2]} 30... Qxf2 {[%clk
0:03:38.7]} 31. Bxf2 {[%clk 0:01:42.3]} 31... Ra2 {[%clk 0:03:37.6]} 32. Kg1
{[%clk 0:01:37.2]} 32... Ne2+ {[%clk 0:03:24.6]} 33. Kf1 {[%clk 0:01:35.1]}
33... Nxg3+ {[%clk 0:03:22.8]} 34. Bxg3 {[%clk 0:01:28.9]} 34... Bxg3 {[%clk
0:03:21.9]} 35. Rc6 {[%clk 0:01:13.6]} 35... Kg7 {[%clk 0:03:10.5]} 36. Rcb6
{[%clk 0:01:09.7]} 36... Be5 {[%clk 0:03:06.7]} 37. Rb8 {[%clk 0:01:03.2]} 37...
Rxb8 {[%clk 0:03:05.5]} 38. Rxb8 {[%clk 0:01:02.4]} 38... h5 {[%clk 0:03:05.1]}
39. Bf3 {[%clk 0:00:52.8]} 39... g4 {[%clk 0:03:03]} 40. hxg4 {[%clk 0:00:50.6]}
40... h4 {[%clk 0:03:02.4]} 41. Bg2 {[%clk 0:00:39.9]} 41... Bd4 {[%clk
0:03:00.7]} 42. e5 {[%clk 0:00:10.9]} 42... Bxe5 {[%clk 0:02:58.8]} 43. Be4
{[%clk 0:00:09.7]} 43... h3 {[%clk 0:02:56.6]} 44. Rb7 {[%clk 0:00:04.1]} 44...
h2 {[%clk 0:02:51.5]} 45. g5 {[%clk 0:00:02]} 45... Ra1+ {[%clk 0:02:43.1]} 46.
Kg2 {[%clk 0:00:00.3]} 46... h1=Q+ {[%clk 0:02:42.3]} 0-1

[Event "Live Chess"]
[Site "Chess.com"]
[Date "2024.06.02"]
[Round "-"]
[White "Isambard_Thomas"]
[Black "NAZRIZ1977"]
[Result "0-1"]
[WhiteElo "2162"]
[BlackElo "2115"]
[TimeControl "300"]
[EndTime "0:06:14 PDT"]
[Termination "NAZRIZ1977 won by resignation"]

1. d4 {[%clk 0:04:59]} 1... Nf6 {[%clk 0:04:58.5]} 2. Nf3 {[%clk 0:04:58.4]}
2... g6 {[%clk 0:04:57.3]} 3. Bg5 {[%clk 0:04:57.8]} 3... Bg7 {[%clk 0:04:55.7]}
4. e3 {[%clk 0:04:57.1]} 4... O-O {[%clk 0:04:54.5]} 5. Bd3 {[%clk 0:04:56.6]}
5... d5 {[%clk 0:04:52]} 6. Nbd2 {[%clk 0:04:55.9]} 6... c5 {[%clk 0:04:51.1]}
7. c3 {[%clk 0:04:54.8]} 7... Nc6 {[%clk 0:04:50.3]} 8. Qe2 {[%clk 0:04:53.8]}
8... Nd7 {[%clk 0:04:46.7]} 9. O-O-O {[%clk 0:04:49.4]} 9... c4 {[%clk
0:04:44.9]} 10. Bc2 {[%clk 0:04:48.2]} 10... f5 {[%clk 0:04:39]} 11. h4 {[%clk
0:04:45.5]} 11... b5 {[%clk 0:04:23.8]} 12. h5 {[%clk 0:04:43.6]} 12... b4
{[%clk 0:04:23.1]} 13. hxg6 {[%clk 0:04:42.5]} 13... hxg6 {[%clk 0:04:22.2]} 14.
Nxc4 {[%clk 0:04:33.5]} 14... bxc3 {[%clk 0:04:17.6]} 15. bxc3 {[%clk
0:04:28.3]} 15... Ba6 {[%clk 0:04:16.5]} 16. Bb3 {[%clk 0:04:25.2]} 16... Na5
{[%clk 0:04:13.7]} 17. Nxa5 {[%clk 0:03:21.7]} 17... Bxe2 {[%clk 0:04:10.2]} 18.
Nc6 {[%clk 0:03:20.6]} 18... Qc7 {[%clk 0:03:52.7]} 19. Nxe7+ {[%clk 0:03:16.4]}
19... Kf7 {[%clk 0:03:50.4]} 20. Bxd5+ {[%clk 0:03:13.2]} 20... Ke8 {[%clk
0:03:49.3]} 21. Bxa8 {[%clk 0:02:55.8]} 21... Qxc3+ {[%clk 0:03:42.5]} 0-1

[Event "Live Chess"]
[Site "Chess.com"]
[Date "2024.06.02"]
[Round "-"]
[White "VIDYUTGANESH"]
[Black "Greenbecker"]
[Result "0-1"]
[WhiteElo "1741"]
[BlackElo "1723"]
[TimeControl "300"]
[EndTime "0:07:02 PDT"]
[Termination "Greenbecker won by resignation"]

1. e4 {[%clk 0:04:55.5]} 1... Nc6 {[%clk 0:04:56.5]} 2. Nf3 {[%clk 0:04:54.6]}
2... d6 {[%clk 0:04:54.7]} 3. d4 {[%clk 0:04:52.7]} 3... Nf6 {[%clk 0:04:51.1]}
4. Nc3 {[%clk 0:04:50.8]} 4... g6 {[%clk 0:04:49.3]} 5. Bb5 {[%clk 0:04:49.6]}
5... a6 {[%clk 0:04:47.8]} 6. Ba4 {[%clk 0:04:48.3]} 6... b5 {[%clk 0:04:46.4]}
7. Bb3 {[%clk 0:04:47.4]} 7... b4 {[%clk 0:04:44.5]} 8. Nd5 {[%clk 0:04:42.8]}
8... Nxe4 {[%clk 0:04:41.1]} 9. O-O {[%clk 0:04:41.8]} 9... e6 {[%clk
0:04:38.6]} 10. Re1 {[%clk 0:04:21.7]} 10... f5 {[%clk 0:04:23.5]} 11. Ne3
{[%clk 0:03:40.1]} 11... Bg7 {[%clk 0:04:21.5]} 12. d5 {[%clk 0:03:31.7]} 12...
Ne5 {[%clk 0:04:12.6]} 13. dxe6 {[%clk 0:03:26]} 13... Qe7 {[%clk 0:04:05.7]}
14. Nxe5 {[%clk 0:03:11.1]} 14... Bxe5 {[%clk 0:04:02.3]} 15. Qd5 {[%clk
0:03:06.1]} 15... Rb8 {[%clk 0:03:58.2]} 16. f3 {[%clk 0:02:56.1]} 16... Nc5
{[%clk 0:03:47.6]} 17. Qc6+ {[%clk 0:02:29.4]} 17... Kf8 {[%clk 0:03:45.9]} 18.
Nc4 {[%clk 0:02:22.8]} 18... Bb7 {[%clk 0:03:41.7]} 19. Bh6+ {[%clk 0:02:03.7]}
19... Bg7 {[%clk 0:03:20.8]} 20. Bxg7+ {[%clk 0:01:49.5]} 20... Kxg7 {[%clk
0:03:19.7]} 21. Qd7 {[%clk 0:01:36.1]} 21... Nxd7 {[%clk 0:03:17.3]} 0-1

[Event "Live Chess"]
[Site "Chess.com"]
[Date "2024.06.02"]
[Round "-"]
[White "Dhaydon19"]
[Black "vincents82"]
[Result "1-0"]
[WhiteElo "2673"]
[BlackElo "1999"]
[TimeControl "300"]
[EndTime "0:07:36 PDT"]
[Termination "Dhaydon19 won by resignation"]

1. d4 {[%clk 0:04:58.3]} 1... d5 {[%clk 0:04:58.2]} 2. Nf3 {[%clk 0:04:57.8]}
2... Nf6 {[%clk 0:04:56.4]} 3. g3 {[%clk 0:04:57.5]} 3... Bf5 {[%clk 0:04:55.2]}
4. Bg2 {[%clk 0:04:57.2]} 4... e6 {[%clk 0:04:54.5]} 5. O-O {[%clk 0:04:56.9]}
5... Nbd7 {[%clk 0:04:53.3]} 6. c3 {[%clk 0:04:56.6]} 6... Be7 {[%clk
0:04:51.2]} 7. Re1 {[%clk 0:04:56.2]} 7... h6 {[%clk 0:04:50.2]} 8. Bd2 {[%clk
0:04:54.5]} 8... O-O {[%clk 0:04:47.3]} 9. Bc1 {[%clk 0:04:53.7]} 9... Ne4
{[%clk 0:04:46.1]} 10. Nbd2 {[%clk 0:04:53.1]} 10... Ndf6 {[%clk 0:04:44.4]} 11.
Ne5 {[%clk 0:04:51.7]} 11... Nxd2 {[%clk 0:04:40.9]} 12. Bxd2 {[%clk 0:04:50.3]}
12... Nd7 {[%clk 0:04:38.5]} 13. Nd3 {[%clk 0:04:48.9]} 13... c5 {[%clk
0:04:30]} 14. Be3 {[%clk 0:04:26.5]} 14... c4 {[%clk 0:04:24.2]} 15. Ne5 {[%clk
0:04:23.8]} 15... Nxe5 {[%clk 0:04:22.6]} 16. dxe5 {[%clk 0:04:22.9]} 16... b5
{[%clk 0:04:20.6]} 17. Bd4 {[%clk 0:04:21.5]} 17... a5 {[%clk 0:04:18.9]} 18.
Qd2 {[%clk 0:04:16.1]} 18... b4 {[%clk 0:04:16.4]} 19. e4 {[%clk 0:04:08.3]}
19... Bxe4 {[%clk 0:04:13]} 20. Bxe4 {[%clk 0:04:06.6]} 20... dxe4 {[%clk
0:04:12.1]} 21. Rxe4 {[%clk 0:04:04.2]} 21... Qd5 {[%clk 0:04:06.8]} 22. Rg4
{[%clk 0:04:02.6]} 22... Kh7 {[%clk 0:04:03.6]} 23. Qe2 {[%clk 0:03:56.2]} 23...
Rad8 {[%clk 0:03:47.3]} 24. Re1 {[%clk 0:03:50.5]} 24... Bc5 {[%clk 0:03:39.7]}
25. Bxc5 {[%clk 0:03:45.9]} 25... Qxc5 {[%clk 0:03:37.9]} 26. Rxc4 {[%clk
0:03:45.3]} 26... Qb5 {[%clk 0:03:28.4]} 27. cxb4 {[%clk 0:03:43.4]} 27... axb4
{[%clk 0:03:22]} 28. Qe4+ {[%clk 0:03:41.9]} 28... Kh8 {[%clk 0:03:19.5]} 29.
Rxb4 {[%clk 0:03:41]} 29... Qa5 {[%clk 0:03:15.2]} 30. a3 {[%clk 0:03:39.1]}
30... Rd2 {[%clk 0:03:13.6]} 31. Kg2 {[%clk 0:03:34.6]} 31... Rfd8 {[%clk
0:03:12.2]} 32. Re3 {[%clk 0:03:32.7]} 32... Qc7 {[%clk 0:03:04.7]} 33. Rf3
{[%clk 0:03:29.4]} 33... Rd1 {[%clk 0:02:44.5]} 34. Rb7 {[%clk 0:03:10.3]} 34...
Qc1 {[%clk 0:02:19.7]} 35. Rbxf7 {[%clk 0:03:04.3]} 35... Rg1+ {[%clk
0:02:13.8]} 36. Kh3 {[%clk 0:03:03.4]} 36... Qf1+ {[%clk 0:02:11.7]} 37. Kg4
{[%clk 0:02:58.4]} 37... h5+ {[%clk 0:02:08.3]} 38. Kg5 {[%clk 0:02:56.1]} 38...
Rg8 {[%clk 0:02:02.1]} 39. Qg6 {[%clk 0:02:53.4]} 39... Qc1+ {[%clk 0:01:57.9]}
40. R3f4 {[%clk 0:02:50.4]} 40... Qd1 {[%clk 0:01:32]} 41. Rxg7 {[%clk
0:02:43.9]} 41... Qd8+ {[%clk 0:01:22.1]} 42. Kh6 {[%clk 0:02:39.4]} 1-0

[Event "Live Chess"]
[Site "Chess.com"]
[Date "2024.06.02"]
[Round "-"]
[White "JanMur7"]
[Black "f4nomore"]
[Result "1-0"]
[WhiteElo "2271"]
[BlackElo "1249"]
[TimeControl "300"]
[EndTime "0:08:18 PDT"]
[Termination "JanMur7 won by resignation"]

1. d4 {[%clk 0:04:58.3]} 1... g6 {[%clk 0:04:58.6]} 2. c4 {[%clk 0:04:56.9]}
2... Bg7 {[%clk 0:04:56.4]} 3. Nc3 {[%clk 0:04:56.5]} 3... d6 {[%clk 0:04:39.4]}
4. e4 {[%clk 0:04:54.6]} 4... Nf6 {[%clk 0:04:36.7]} 5. Be2 {[%clk 0:04:49.8]}
5... O-O {[%clk 0:04:34.2]} 6. Bg5 {[%clk 0:04:47.5]} 6... Nbd7 {[%clk
0:04:32.5]} 7. g4 {[%clk 0:04:44.9]} 7... a6 {[%clk 0:04:30.8]} 8. h4 {[%clk
0:04:43.1]} 8... h6 {[%clk 0:04:27.9]} 9. Be3 {[%clk 0:04:40.9]} 9... c5 {[%clk
0:04:18.2]} 10. d5 {[%clk 0:04:38.5]} 10... Ne5 {[%clk 0:04:13.6]} 11. f3 {[%clk
0:04:31.6]} 11... h5 {[%clk 0:03:53.1]} 12. g5 {[%clk 0:04:28.6]} 12... Nh7
{[%clk 0:03:50.1]} 13. Nh3 {[%clk 0:04:27.4]} 13... Qb6 {[%clk 0:03:38.8]} 14.
Qc2 {[%clk 0:04:18.8]} 14... Qb4 {[%clk 0:03:25.5]} 15. a3 {[%clk 0:04:15.6]}
15... Qa5 {[%clk 0:03:20.9]} 16. Nf2 {[%clk 0:04:12.1]} 16... b5 {[%clk
0:03:02.4]} 17. cxb5 {[%clk 0:03:29.6]} 17... axb5 {[%clk 0:02:52.6]} 18. O-O
{[%clk 0:03:27.5]} 18... Ba6 {[%clk 0:02:36.7]} 19. b4 {[%clk 0:03:19.1]} 19...
cxb4 {[%clk 0:02:29.2]} 20. axb4 {[%clk 0:03:19]} 20... Qb6 {[%clk 0:02:23]} 21.
Bxb6 {[%clk 0:03:16.4]} 1-0

[Event "Live Chess"]
[Site "Chess.com"]
[Date "2024.06.02"]
[Round "-"]
[White "JohanKjeldahl"]
[Black "Tushinskiy"]
[Result "0-1"]
[WhiteElo "1851"]
[BlackElo "2290"]
[TimeControl "300"]
[EndTime "0:09:22 PDT"]
[Termination "Tushinskiy won by resignation"]

1. c4 {[%clk 0:04:56.8]} 1... c5 {[%clk 0:04:58.1]} 2. Nc3 {[%clk 0:04:55.5]}
2... d6 {[%clk 0:04:58]} 3. Nf3 {[%clk 0:04:53.9]} 3... Nc6 {[%clk 0:04:57.9]}
4. d4 {[%clk 0:04:51.5]} 4... Nf6 {[%clk 0:04:57.8]} 5. d5 {[%clk 0:04:49.3]}
5... Nb8 {[%clk 0:04:55.4]} 6. e4 {[%clk 0:04:47.7]} 6... Nbd7 {[%clk
0:04:55.3]} 7. Bf4 {[%clk 0:04:40.4]} 7... g6 {[%clk 0:04:54.4]} 8. Bd3 {[%clk
0:04:38.7]} 8... Bg7 {[%clk 0:04:54.3]} 9. O-O {[%clk 0:04:37.5]} 9... O-O
{[%clk 0:04:53.7]} 10. h3 {[%clk 0:04:36]} 10... a6 {[%clk 0:04:52.9]} 11. Qd2
{[%clk 0:04:34]} 11... Re8 {[%clk 0:04:51.6]} 12. e5 {[%clk 0:04:30.8]} 12...
dxe5 {[%clk 0:04:50.3]} 13. Nxe5 {[%clk 0:04:29.3]} 13... Nxe5 {[%clk
0:04:34.4]} 14. Bxe5 {[%clk 0:04:28.3]} 14... Bd7 {[%clk 0:04:28.6]} 15. a4
{[%clk 0:04:18.1]} 15... Qc8 {[%clk 0:04:26.4]} 16. Rfe1 {[%clk 0:04:11.2]}
16... Bf5 {[%clk 0:04:22.9]} 17. Rad1 {[%clk 0:04:03.5]} 17... Qd7 {[%clk
0:04:14]} 18. Qf4 {[%clk 0:04:01.2]} 18... Bxd3 {[%clk 0:04:12.5]} 19. Rxd3
{[%clk 0:03:59.6]} 19... Rad8 {[%clk 0:04:06.5]} 20. Ne4 {[%clk 0:03:50.3]}
20... Nxe4 {[%clk 0:04:00.4]} 21. Qxe4 {[%clk 0:03:47.2]} 21... Bxe5 {[%clk
0:03:58.3]} 22. Qxe5 {[%clk 0:03:45.7]} 22... Qxa4 {[%clk 0:03:57.4]} 23. b3
{[%clk 0:03:37.7]} 23... Qa5 {[%clk 0:03:51.7]} 24. Rde3 {[%clk 0:03:29.5]}
24... b5 {[%clk 0:03:48.7]} 25. Qf4 {[%clk 0:03:23.5]} 25... bxc4 {[%clk
0:03:43.3]} 26. bxc4 {[%clk 0:03:22.4]} 26... Qd2 {[%clk 0:03:33.6]} 27. Qf3
{[%clk 0:03:09.1]} 27... a5 {[%clk 0:03:24.5]} 28. Rxe7 {[%clk 0:03:05.9]} 28...
Qxe1+ {[%clk 0:03:22.4]} 29. Rxe1 {[%clk 0:03:02.2]} 29... Rxe1+ {[%clk
0:03:22.3]} 30. Kh2 {[%clk 0:03:00.8]} 30... a4 {[%clk 0:03:21.3]} 31. Qa3
{[%clk 0:02:58.7]} 31... Ra8 {[%clk 0:03:17.6]} 32. d6 {[%clk 0:02:53.2]} 32...
Ree8 {[%clk 0:03:12.7]} 33. f4 {[%clk 0:02:45.8]} 33... Red8 {[%clk 0:03:11.1]}
34. f5 {[%clk 0:02:39]} 34... Rxd6 {[%clk 0:03:06.5]} 35. Qxc5 {[%clk
0:02:37.7]} 35... a3 {[%clk 0:02:53.8]} 36. Qxd6 {[%clk 0:02:35.4]} 36... a2
{[%clk 0:02:52.8]} 37. fxg6 {[%clk 0:02:33]} 37... hxg6 {[%clk 0:02:52.7]} 38.
c5 {[%clk 0:02:29.7]} 38... a1=Q {[%clk 0:02:51.4]} 0-1

[Event "Live Chess"]
[Site "Chess.com"]
[Date "2024.06.02"]
[Round "-"]
[White "ProfPoisson"]
[Black "Ferrarifan27"]
[Result "0-1"]
[WhiteElo "1299"]
[BlackElo "2118"]
[TimeControl "300"]
[EndTime "0:09:53 PDT"]
[Termination "Ferrarifan27 won by checkmate"]

1. e4 {[%clk 0:04:54.6]} 1... e5 {[%clk 0:04:58.1]} 2. Nf3 {[%clk 0:04:52.7]}
2... Nc6 {[%clk 0:04:57.4]} 3. d4 {[%clk 0:04:51.3]} 3... exd4 {[%clk
0:04:56.3]} 4. Bc4 {[%clk 0:04:50.3]} 4... Bb4+ {[%clk 0:04:54]} 5. c3 {[%clk
0:04:47.9]} 5... dxc3 {[%clk 0:04:53.9]} 6. O-O {[%clk 0:04:45.9]} 6... cxb2
{[%clk 0:04:50.4]} 7. Bxb2 {[%clk 0:04:44.4]} 7... Nf6 {[%clk 0:04:49.5]} 8. Ng5
{[%clk 0:04:35.3]} 8... O-O {[%clk 0:04:47.7]} 9. Nd2 {[%clk 0:04:20.9]} 9... h6
{[%clk 0:04:40.3]} 10. Nh3 {[%clk 0:03:45.9]} 10... Bxd2 {[%clk 0:04:35.4]} 11.
Qxd2 {[%clk 0:03:41.3]} 11... Nxe4 {[%clk 0:04:34.3]} 12. Qf4 {[%clk 0:03:28]}
12... d5 {[%clk 0:04:21.8]} 13. Bd3 {[%clk 0:03:15.4]} 13... Bxh3 {[%clk
0:04:18.3]} 14. gxh3 {[%clk 0:03:02.8]} 14... Qg5+ {[%clk 0:04:16.7]} 15. Qxg5
{[%clk 0:03:02.3]} 15... Nxg5 {[%clk 0:04:15.9]} 16. h4 {[%clk 0:02:57.5]} 16...
Nf3+ {[%clk 0:04:13.7]} 17. Kh1 {[%clk 0:02:55.6]} 17... Nxh4 {[%clk 0:04:12.2]}
18. Rg1 {[%clk 0:02:51.1]} 18... f6 {[%clk 0:04:08.4]} 19. Rg4 {[%clk 0:02:45]}
19... Nf3 {[%clk 0:04:06.6]} 20. Be2 {[%clk 0:02:33.2]} 20... Nfe5 {[%clk
0:04:04.2]} 21. Rg3 {[%clk 0:02:26.1]} 21... Rfe8 {[%clk 0:04:01.2]} 22. Rag1
{[%clk 0:02:24.2]} 22... Re7 {[%clk 0:04:00.3]} 23. f4 {[%clk 0:02:13.6]} 23...
Nc4 {[%clk 0:03:55.8]} 24. Bxf6 {[%clk 0:02:10.7]} 24... Rxe2 {[%clk 0:03:25.3]}
25. Rxg7+ {[%clk 0:01:49.6]} 25... Kf8 {[%clk 0:03:24]} 26. Rxc7 {[%clk
0:01:16.8]} 26... Re6 {[%clk 0:02:43.5]} 27. Bg7+ {[%clk 0:01:14.6]} 27... Ke8
{[%clk 0:02:41.3]} 28. Bxh6 {[%clk 0:01:11.2]} 28... Kd8 {[%clk 0:02:21.1]} 29.
Rxb7 {[%clk 0:00:50.7]} 29... Kc8 {[%clk 0:02:17.7]} 30. Rh7 {[%clk 0:00:46.8]}
30... Rb8 {[%clk 0:01:45.9]} 31. Rg8+ {[%clk 0:00:41.2]} 31... Nd8 {[%clk
0:01:45]} 32. Rgg7 {[%clk 0:00:33.6]} 32... Rb1+ {[%clk 0:01:36.2]} 33. Kg2
{[%clk 0:00:32.2]} 33... Rb2+ {[%clk 0:01:34.3]} 34. Kh3 {[%clk 0:00:30.8]}
34... Re3+ {[%clk 0:01:29.6]} 35. Kg4 {[%clk 0:00:27.3]} 35... Rg2+ {[%clk
0:01:25.6]} 36. Kf5 {[%clk 0:00:18.4]} 36... Nd6+ {[%clk 0:01:23.7]} 37. Kf6
{[%clk 0:00:12.6]} 37... Re6# {[%clk 0:01:16.5]} 0-1